bitfinex-derivatives/quotes_ETHF0:USTF0_20250102
["timestamp","ask_amount","ask_price","bid_price","bid_amount"]
[1735826447505,2.33536833,3465.7,3465.6,3.75095156]
[1735826447809,0.80075,3465.8,3465.7,0.28885]
[1735826448006,0.5119,3465.8,3465.7,0.28885]
[1735826448202,0.9743,3466.4,3465.9,0.72208]
[1735826448406,1.4841,3466.4,3466.1,2.04651833]
[1735826448602,1.4841,3466.4,3466.3,0.2888]
[1735826449199,3.2078,3466.5,3466.4,0.28879]
[1735826449403,3.2078,3466.5,3466.4,41.08879]
[1735826449608,3.2078,3466.5,3466.4,0.28879]
[1735826450202,3.49659,3466.5,3466.4,0.28879]
[1735826450603,3.6866,3466.5,3466.4,0.28879]
[1735826451603,3.2078,3466.5,3466.4,0.28879]
[1735826456406,4.1999,3466.9,3466.8,0.28876]
[1735826456610,4.48865,3466.9,3466.8,0.28876]
[1735826456915,0.28876,3466.8,3466.7,1.44476]
[1735826457115,4.48866,3466.9,3466.8,0.28876]
[1735826457517,4.1999,3466.9,3466.7,1.156]
[1735826457814,0.28876,3466.8,3466.7,1.44476]
[1735826458016,0.28876,3466.8,3466.7,1.156]
[1735826459312,4.1999,3466.9,3466.2,0.4969]
[1735826459513,3.49659,3466.5,3466.4,0.28879]
[1735826462611,3.2078,3466.5,3466.4,0.28879]
[1735826463013,3.49659,3466.5,3466.4,0.28879]
[1735826465219,0.2888,3466.3,3466.2,0.78571]
[1735826465717,0.28885,3465.8,3465.7,0.28884]
[1735826465923,0.28886,3465.7,3465.6,1.44486]
[1735826466114,3.49666,3465.7,3465.6,1.44486]
[1735826466418,0.28885,3465.8,3465.7,0.28885]
[1735826466626,3.49662,3466.1,3466.0,0.28883]
[1735826467109,3.2078,3466.1,3465.7,0.72214]
[1735826467318,3.2078,3466.1,3466.0,0.28883]
[1735826467714,4.31642789,3466.4,3466.0,0.28883]
[1735826467715,3.85172789,3466.4,3466.3,0.2888]
[1735826467917,3.38242789,3466.4,3466.3,1.4448]
[1735826468421,3.2078,3466.6,3466.5,0.28879]
[1735826468918,3.2078,3466.6,3466.5,41.08879]
[1735826469110,3.2078,3466.6,3466.5,0.28879]
[1735826469619,3.2078,3466.6,3466.5,41.08879]
[1735826470017,3.2078,3466.6,3466.5,0.28879]
[1735826471819,3.49658,3466.6,3466.5,0.28879]
[1735826472020,3.2078,3466.6,3466.5,1.44479]
[1735826472620,3.49658,3466.6,3466.5,1.44479]
[1735826472819,0.28882,3466.2,3466.1,0.9496]
[1735826473014,0.28882,3466.2,3465.7,1.156]
[1735826473015,3.2078,3466.2,3465.8,0.28885]
[1735826473219,2.04651833,3466.1,3464.9,9.98881913]
[1735826473426,2.04651833,3465.5,3464.9,9.98881913]
[1735826473614,0.28889,3465.3,3464.9,9.98881913]
[1735826473816,0.4941,3465.4,3465.2,0.2889]
[1735826473817,0.78299,3465.4,3465.2,0.2889]
[1735826474016,0.78118,3465.5,3465.3,0.28889]
[1735826474215,0.4736,3465.9,3465.3,5.25431833]
[1735826474425,0.28883,3466.0,3465.8,0.28885]
[1735826474719,0.4983,3466.1,3465.8,1.168]
[1735826474921,4.80762558,3465.9,3465.8,1.45684]
[1735826475118,4.51878558,3465.9,3465.8,1.45684]
[1735826475533,4.80762558,3465.9,3465.8,0.28884]
[1735826475724,4.80762558,3465.9,3465.8,1.168]
[1735826476020,6.56530391,3465.9,3464.9,0.4868]
[1735826476223,0.2889,3465.2,3465.1,0.2889]
[1735826476720,0.2889,3465.2,3465.0,1.168]
[1735826476924,3.4967,3465.2,3465.1,0.2889]
[1735826477225,0.28891,3465.0,3464.9,1.168]
[1735826477819,0.4685,3465.1,3464.7,5.54325833]
[1735826478021,0.28892,3464.9,3464.8,1.168]
[1735826479218,0.28892,3464.9,3464.7,3.49674]
[1735826479219,0.28892,3464.9,3464.7,4.66574]
[1735826479621,0.28893,3464.8,3464.7,3.2078]
[1735826480723,0.28893,3464.8,3464.7,3.49674]
[1735826481434,0.28896,3464.5,3464.4,0.28896]
[1735826481643,0.28895,3464.5,3464.4,1.169]
[1735826481938,0.9391,3464.7,3464.4,1.169]
[1735826482144,0.4722,3464.7,3464.4,1.169]
[1735826482343,0.28895,3464.6,3464.5,0.28895]
[1735826483338,0.28895,3464.5,3464.4,1.45795]
[1735826486043,0.28895,3464.5,3464.4,1.169]
[1735826486341,5.0,3464.5,3463.0,9.98881913]
[1735826486546,3.2078,3463.4,3463.0,7.75821913]
[1735826486846,0.28905,3463.3,3463.2,2.04651833]
[1735826487146,0.28904,3463.4,3463.0,10.96601913]
[1735826487448,3.2078,3463.5,3463.3,2.33555833]
[1735826487649,3.2078,3463.5,3463.3,0.28904]
[1735826487946,3.49683,3463.5,3463.2,0.28905]
[1735826488346,3.2078,3463.5,3463.0,0.9772]
[1735826488548,0.28904,3463.4,3463.1,0.28906]
[1735826488739,0.28905,3463.3,3463.0,1.26627]
[1735826488946,0.28904,3463.4,3463.0,1.26627]
[1735826489444,3.2078,3463.5,3463.0,1.169]
[1735826489644,3.49686,3463.1,3463.0,1.169]
[1735826490543,0.28908,3463.0,3462.7,0.28909]
[1735826490743,0.28908,3463.0,3462.8,0.28909]
[1735826490952,0.28908,3462.9,3462.7,1.45809]
[1735826491246,0.9708,3463.0,3462.7,1.169]
[1735826491450,1.25988,3463.0,3462.8,0.28909]
[1735826491664,1.4663,3463.0,3462.9,0.28908]
[1735826491845,1.4663,3463.0,3462.7,1.169]
[1735826491846,1.75538,3463.0,3462.7,1.169]
[1735826492149,1.75538,3463.0,3462.8,0.28908]
[1735826492449,1.75538,3463.0,3462.9,0.28908]
[1735826492647,1.4663,3463.0,3462.9,0.28908]
[1735826493038,1.4663,3463.0,3462.7,1.169]
[1735826493039,0.28909,3462.9,3462.8,0.28909]
[1735826493246,0.28909,3462.9,3462.7,1.169]
[1735826493446,1.4663,3463.0,3462.7,1.169]
[1735826493650,2.04651833,3462.9,3461.7,3.2078]
[1735826493847,0.28912,3462.5,3462.4,0.28912]
[1735826494049,3.2078,3462.6,3462.0,1.169]
[1735826494249,5.25431833,3462.6,3462.0,1.169]
[1735826494443,0.28913,3462.4,3462.3,0.28912]
[1735826494848,5.54342833,3462.6,3462.4,0.28911]
[1735826495160,3.2078,3462.6,3462.0,1.169]
[1735826495649,3.2078,3462.6,3462.5,0.28911]
[1735826495846,3.2078,3462.6,3462.0,1.169]
[1735826496049,0.28912,3462.5,3462.1,0.28915]
[1735826496248,3.2078,3462.6,3462.0,1.169]
[1735826496550,3.2078,3462.1,3461.3,3.2078]
[1735826496747,2.04651833,3461.7,3461.3,3.2078]
[1735826496947,1.4993,3462.0,3461.5,0.2892]
[1735826496948,3.2078,3461.6,3461.5,0.2892]
[1735826497242,3.2078,3461.6,3461.2,2.04651833]
[1735826497243,0.28923,3461.2,3461.0,0.28924]
[1735826497450,0.28923,3461.1,3460.9,0.28925]
[1735826497742,3.2078,3461.6,3460.8,3.7203]
[1735826497950,2.04651833,3461.1,3459.7,0.72336]
[1735826498154,3.2078,3460.5,3460.4,0.28929]
[1735826498354,3.2078,3460.5,3460.3,0.28929]
[1735826498648,3.2078,3460.5,3459.7,0.5125]
[1735826498954,3.2078,3460.5,3460.4,0.28929]
[1735826499153,3.2078,3460.5,3459.9,2.04651833]
[1735826499154,5.25431833,3460.5,3459.9,3.2078]
[1735826499349,2.04651833,3460.2,3460.0,0.28932]
[1735826499546,0.28929,3460.4,3459.7,2.55901833]
[1735826499748,3.2078,3460.5,3460.0,2.04651833]
[1735826499950,4.1997,3461.0,3460.3,2.04651833]
[1735826500145,4.1997,3461.0,3460.4,0.4722]
[1735826500350,4.1997,3461.0,3459.9,3.2078]
[1735826500351,5.66555178,3460.6,3459.9,3.2078]
[1735826500562,0.28929,3460.4,3460.1,0.28931]
[1735826500748,3.2078,3460.6,3460.2,0.2893]
[1735826500749,3.49708,3460.6,3460.2,0.2893]
[1735826501153,4.1997,3461.0,3460.0,1.17]
[1735826501348,0.28926,3460.8,3460.4,0.28928]
[1735826501544,4.1997,3461.0,3460.1,2.45775178]
[1735826501757,3.2078,3461.0,3460.9,0.28925]
[1735826501954,0.2892,3461.5,3460.9,1.17]
[1735826502150,0.28921,3461.4,3461.0,0.4722]
[1735826502352,3.2078,3461.6,3461.0,0.4722]
[1735826502554,3.2078,3461.6,3461.5,0.2892]
[1735826503052,3.2078,3461.6,3461.4,0.2892]
[1735826503557,3.2078,3461.6,3461.5,0.2892]
[1735826503851,3.2078,3461.6,3461.0,0.9388]
[1735826503852,3.2078,3462.0,3461.2,3.2078]
[1735826504058,3.49696,3462.0,3461.2,3.2078]
[1735826504353,0.28916,3461.9,3461.5,0.28919]
[1735826504554,0.28916,3461.9,3461.6,1.213]
[1735826504761,3.2078,3462.0,3461.6,1.213]
[1735826505445,3.2078,3462.0,3461.7,0.76248]
[1735826505649,3.2078,3462.0,3461.7,0.4733]
[1735826505849,3.49696,3462.0,3461.7,0.4733]
[1735826506055,3.2078,3462.0,3461.7,0.4733]
[1735826506255,0.28916,3461.9,3461.7,0.4733]
[1735826506451,0.28918,3461.7,3461.6,1.213]
[1735826507153,2.45775178,3461.7,3461.1,0.4733]
[1735826507358,3.2078,3461.4,3460.6,0.4799]
[1735826507661,0.28925,3460.9,3460.6,0.28927]
[1735826507854,0.28923,3461.2,3460.8,0.28925]
[1735826508357,0.28921,3461.3,3461.0,0.28923]
[1735826508550,0.28923,3461.1,3460.8,0.28925]
[1735826508747,0.28922,3461.2,3460.9,0.28924]
[1735826508946,0.28922,3461.2,3460.4,7.35185178]
[1735826508947,3.2078,3461.4,3460.4,7.35185178]
[1735826509160,3.497,3461.4,3460.4,8.07506178]
[1735826509358,0.28921,3461.3,3461.0,0.28922]
[1735826509556,3.2078,3461.4,3460.4,7.35185178]
[1735826509862,3.2078,3461.4,3460.8,5.66555178]
[1735826510359,3.2078,3461.4,3461.3,0.28921]
[1735826511167,0.4727,3461.6,3461.4,0.28919]
[1735826511354,0.4727,3461.6,3461.1,1.213]
[1735826511858,0.28919,3461.5,3461.2,0.28921]
[1735826512057,0.76189,3461.6,3461.3,0.28921]
[1735826512364,0.76189,3461.6,3461.1,1.213]
[1735826512365,0.76188,3461.6,3461.1,1.213]
[1735826512563,0.76188,3461.6,3461.4,0.28919]
[1735826512762,3.2078,3461.8,3461.1,1.213]
[1735826513060,0.28917,3461.7,3461.1,1.213]
[1735826513256,0.28917,3461.7,3461.4,0.28919]
[1735826513456,3.2078,3461.8,3461.1,1.213]
[1735826513652,3.2078,3461.8,3461.3,0.2892]
[1735826513653,0.28919,3461.5,3461.3,0.2892]
[1735826513957,3.2078,3461.8,3461.1,1.213]
[1735826514159,0.28919,3461.5,3461.3,0.2892]
[1735826514357,3.2078,3461.8,3461.1,1.213]
[1735826514557,0.28921,3461.3,3461.1,1.50222]
[1735826514758,0.28907,3463.0,3462.1,0.28913]
[1735826514958,0.28906,3463.1,3462.7,2.74684178]
[1735826515158,0.28907,3463.0,3462.6,1.50209]
[1735826515567,3.49686,3463.1,3462.6,1.213]
[1735826515752,0.28907,3463.0,3462.8,0.28908]
[1735826516065,0.28907,3463.0,3462.6,1.213]
[1735826516258,0.28907,3463.0,3462.9,0.28907]
[1735826516460,0.28908,3462.9,3462.7,0.28908]
[1735826516659,0.28908,3462.9,3462.8,0.28908]
[1735826517161,0.9514,3463.0,3462.6,1.213]
[1735826517462,0.9514,3463.0,3462.8,0.28908]
[1735826517463,0.28907,3462.9,3462.8,0.28908]
[1735826518056,0.28907,3462.9,3462.6,1.213]
[1735826518057,0.9514,3463.0,3462.6,1.213]
[1735826518256,0.9514,3463.0,3462.9,0.28907]
[1735826518453,0.4789,3463.0,3462.9,0.28907]
[1735826518761,3.2078,3463.5,3462.9,3.2078]
[1735826518957,0.5024,3463.6,3463.5,0.28902]
[1735826520257,0.5024,3463.6,3463.5,2.74677178]
[1735826520465,0.991,3464.0,3463.9,0.28898]
[1735826520466,0.4789,3464.0,3463.9,0.28898]
[1735826520661,0.4789,3464.0,3463.9,2.74673178]
[1735826522154,3.2078,3464.3,3463.9,2.45775178]
[1735826522356,3.49675,3464.3,3464.2,0.28896]
[1735826522559,3.2078,3464.3,3464.1,0.28896]
[1735826522763,3.49675,3464.3,3464.2,0.28895]
[1735826524771,3.49675,3464.3,3464.1,0.28895]
[1735826525166,3.2078,3464.3,3463.5,2.45775178]
[1735826525366,3.2078,3463.9,3463.1,2.45775178]
[1735826525566,3.2078,3463.5,3462.8,3.2078]
[1735826525765,2.45775178,3463.2,3462.4,3.2078]
[1735826526065,2.45775178,3463.2,3462.0,0.9813]
[1735826526066,3.2078,3462.9,3462.0,3.6924]
[1735826526273,0.28913,3462.1,3462.0,1.98574]
[1735826526461,0.28913,3462.1,3462.0,1.212]
[1735826526887,0.28916,3461.8,3461.7,6.74052735]
[1735826527171,5.95471178,3461.8,3461.7,5.20292735]
[1735826527467,5.95471178,3461.8,3461.7,1.18082735]
[1735826527468,10.95471178,3461.8,3461.7,1.18082735]
[1735826527771,1.01209,3461.6,3460.1,1.212]
[1735826527971,3.2078,3460.5,3460.1,1.50128]
[1735826528276,3.2078,3461.0,3459.8,9.21729503]
[1735826528468,0.28915,3461.7,3460.9,3.49701]
[1735826528664,3.2078,3461.8,3461.0,3.66975178]
[1735826528868,2.45775178,3462.6,3461.4,2.45775178]
[1735826528869,3.2078,3462.3,3461.4,2.45775178]
[1735826529065,3.36302927,3461.6,3461.4,2.45775178]
[1735826529275,3.2078,3461.5,3461.1,1.212]
[1735826530067,0.28919,3461.2,3461.1,1.212]
[1735826530267,3.49696,3461.5,3461.1,1.212]
[1735826530464,3.2078,3461.5,3461.1,1.50119]
[1735826530669,3.2078,3461.5,3461.3,0.28917]
[1735826531270,3.2078,3461.5,3461.2,0.28919]
[1735826531572,3.2078,3461.5,3461.3,41.08917]
[1735826531964,3.2078,3461.9,3461.4,2.94075178]
[1735826532163,3.2078,3461.9,3461.5,0.28916]
[1735826532372,3.49693,3461.9,3461.4,2.94075178]
[1735826532574,0.28914,3461.8,3461.4,0.483]
[1735826532778,0.28916,3461.5,3461.4,0.483]
[1735826533077,0.28918,3461.4,3461.1,3.2078]
[1735826533277,3.2078,3461.9,3461.2,1.212]
[1735826533573,3.2078,3461.9,3461.2,1.238]
[1735826533975,3.2078,3461.9,3461.2,4.4458]
[1735826534176,0.28914,3461.8,3461.4,0.28917]
[1735826534371,3.2078,3461.9,3461.3,0.4957]
[1735826534565,0.28914,3461.8,3461.5,0.28916]
[1735826534968,0.28914,3461.8,3461.4,1.238]
[1735826534969,2.2462781,3462.0,3461.4,1.238]
[1735826535171,2.2462781,3462.0,3461.8,0.28913]
[1735826535471,0.28911,3462.2,3461.8,0.28913]
[1735826535675,2.2462781,3462.3,3462.1,0.28911]
[1735826535973,2.2462781,3462.3,3461.7,3.2078]
[1735826535974,2.2462781,3462.3,3462.2,0.466]
[1735826536165,2.2462781,3462.3,3462.2,1.9931]
[1735826536371,2.2462781,3462.3,3462.2,1.704]
[1735826536674,2.5353781,3462.3,3462.2,1.704]
[1735826536874,0.2891,3462.3,3462.2,1.704]
[1735826537076,3.2078,3462.4,3461.7,4.4458]
[1735826537271,0.28913,3461.9,3461.7,1.238]
[1735826537466,0.28913,3462.0,3461.7,1.238]
[1735826537669,0.28913,3461.9,3461.7,1.238]
[1735826537868,3.2078,3462.4,3461.7,1.238]
[1735826538271,0.28913,3461.9,3461.7,1.238]
[1735826538479,0.2891,3462.3,3461.7,1.52714]
[1735826538678,0.28912,3462.1,3461.7,1.52714]
[1735826538980,3.49689,3462.4,3462.0,0.28911]
[1735826539170,0.28911,3462.2,3461.7,1.52714]
[1735826539480,3.2078,3462.4,3461.7,1.52714]
[1735826539481,0.28911,3462.1,3461.7,1.52714]
[1735826539680,3.2078,3462.4,3461.7,1.238]
[1735826540175,0.28914,3461.8,3461.6,1.238]
[1735826540375,3.2078,3462.4,3461.6,1.238]
[1735826540677,0.28913,3462.0,3461.6,1.52715]
[1735826540869,3.2078,3462.4,3461.6,1.238]
[1735826541072,0.28915,3461.6,3461.5,1.704]
[1735826541269,3.2078,3462.0,3461.5,1.704]
[1735826541480,0.28915,3461.7,3461.5,1.704]
[1735826541673,0.28915,3461.7,3461.5,0.466]
[1735826541872,3.2078,3462.0,3461.5,0.466]
[1735826541873,0.28915,3461.6,3461.5,0.466]
[1735826542068,0.2892,3461.0,3460.8,3.2078]
[1735826542278,3.2078,3461.6,3460.9,8.464]
[1735826542479,0.2892,3461.1,3460.9,8.464]
[1735826543084,3.2078,3461.6,3460.9,8.464]
[1735826543282,0.28919,3461.2,3460.9,8.464]
[1735826543477,3.2078,3461.6,3460.9,1.238]
[1735826543784,0.28918,3461.3,3461.0,0.2892]
[1735826544473,0.28919,3461.2,3460.9,1.52721]
[1735826544986,0.28918,3461.3,3461.0,0.2892]
[1735826545178,0.28918,3461.3,3461.0,0.28923]
[1735826545179,0.28921,3461.3,3461.0,0.28923]
[1735826545384,0.28922,3461.2,3460.9,1.52724]
[1735826545877,0.28923,3461.1,3460.9,1.52724]
[1735826546083,3.2078,3461.6,3460.8,0.4345]
[1735826546380,0.28923,3461.1,3460.9,1.52724]
[1735826546581,3.2078,3461.6,3460.9,4.4458]
[1735826546782,0.28922,3461.2,3460.9,4.4458]
[1735826547172,2.2462781,3461.5,3460.9,4.4458]
[1735826547477,0.28923,3461.0,3460.9,3.2078]
[1735826547677,0.28924,3460.9,3460.8,0.4345]
[1735826547980,3.2078,3461.1,3460.5,0.4392]
[1735826548176,0.72305,3461.2,3460.5,0.4392]
[1735826548177,0.28927,3460.6,3460.5,0.4392]
[1735826548583,3.2078,3461.0,3460.5,0.4392]
[1735826548888,2.2462781,3461.3,3460.5,0.4392]
[1735826549178,2.2462781,3461.3,3460.5,1.6772]
[1735826549381,2.2462781,3461.3,3460.6,0.28926]
[1735826549578,2.2462781,3461.0,3460.6,0.28926]
[1735826549883,2.2462781,3461.0,3460.5,1.6772]
[1735826550186,5.4540781,3461.0,3460.5,1.96647]
[1735826550384,0.28926,3460.7,3460.5,0.72847]
[1735826550583,0.28927,3460.6,3460.5,0.4392]
[1735826551583,0.28926,3460.7,3460.5,1.96747]
[1735826551785,2.2462781,3461.0,3460.5,1.6782]
[1735826552475,0.28925,3460.9,3460.7,0.28925]
[1735826552678,0.28925,3460.9,3460.5,1.6782]
[1735826552679,3.2078,3461.1,3460.5,1.6782]
[1735826552892,0.28927,3460.6,3460.5,0.4392]
[1735826554984,0.28928,3460.4,3460.3,0.4707]
[1735826555285,0.2893,3460.2,3460.1,0.2893]
[1735826555485,2.45775178,3460.2,3459.4,0.0233408]
[1735826555685,0.28934,3459.8,3459.7,0.28933]
[1735826555980,0.2893,3460.3,3460.2,0.28929]
[1735826556186,3.2078,3460.4,3459.8,1.3127]
[1735826556681,0.28932,3460.0,3459.9,0.28932]
[1735826556881,2.5355981,3460.0,3459.9,0.28932]
[1735826557080,2.2462781,3460.0,3459.9,0.28932]
[1735826557385,5.4540781,3460.0,3459.9,0.28932]
[1735826557677,4.48403903,3460.4,3460.3,0.28929]
[1735826557882,4.48403903,3460.4,3460.3,4.73609]
[1735826558282,4.48403903,3460.4,3460.3,45.53609]
[1735826558477,3.93075,3461.7,3460.3,45.2468]
[1735826558676,0.72301,3461.4,3460.3,45.2468]
[1735826559076,0.28924,3460.9,3460.3,45.2468]
[1735826559283,3.2078,3461.3,3460.3,45.2468]
[1735826559481,3.2078,3460.9,3460.3,3.2078]
[1735826559678,3.2078,3460.9,3460.4,1.239]
[1735826559981,0.28927,3460.5,3460.4,1.239]
[1735826560383,3.49707,3460.5,3460.4,1.239]
[1735826560580,0.4353,3460.8,3460.4,1.239]
[1735826560886,3.2078,3460.9,3460.4,1.239]
[1735826561189,3.2078,3460.9,3460.5,0.4344]
[1735826561483,3.2078,3460.9,3460.8,0.28925]
[1735826561886,3.2078,3460.9,3460.7,0.28925]
[1735826562087,0.28926,3460.7,3460.6,1.52826]
[1735826562285,3.2078,3460.9,3460.6,1.239]
[1735826562486,0.28926,3460.7,3460.6,1.52826]
[1735826563088,0.28926,3460.7,3460.6,1.239]
[1735826563882,0.4597,3460.8,3460.1,1.248]
[1735826564081,0.2893,3460.3,3460.2,0.2893]
[1735826564281,0.4702,3460.7,3459.9,4.4558]
[1735826564485,0.4702,3460.7,3459.9,5.17912]
[1735826564675,0.28928,3460.4,3460.3,0.28929]
[1735826565883,3.2078,3460.4,3459.5,3.2078]
[1735826566186,0.4702,3460.7,3459.5,3.2078]
[1735826566187,0.28928,3460.5,3460.1,2.45775178]
[1735826566509,0.28929,3460.3,3460.2,0.4624]
[1735826566688,0.2893,3460.2,3460.1,1.248]
[1735826566988,0.28934,3459.7,3459.6,3.2078]
[1735826567187,0.28933,3459.9,3459.8,0.28933]
[1735826567689,0.28932,3460.0,3459.9,0.28932]
[1735826567985,5.28932,3460.0,3459.9,0.28932]
[1735826568285,5.28932,3460.0,3459.3,41.52343]
[1735826568286,5.0,3460.0,3458.4,3.2078]
[1735826568490,0.28939,3459.1,3459.0,0.2894]
[1735826568791,3.2078,3459.8,3459.0,1.248]
[1735826568985,0.28935,3459.6,3459.5,0.28936]
[1735826569290,0.28935,3459.7,3459.5,0.28935]
[1735826569490,0.28935,3459.7,3459.3,1.249]
[1735826569678,0.28934,3459.8,3459.6,0.28935]
[1735826569878,0.4554,3460.1,3459.3,1.249]
[1735826570084,0.28678935,3459.7,3459.5,0.28935]
[1735826570285,0.28937,3459.5,3459.4,1.249]
[1735826570483,0.28936,3459.5,3459.4,1.249]
[1735826570690,0.28932,3460.0,3459.4,1.249]
[1735826570892,0.28936,3459.5,3459.4,1.249]
[1735826572084,0.28938,3459.2,3459.1,0.4624]
[1735826572386,0.28938,3459.2,3459.1,1.7114]
[1735826572782,0.28938,3459.2,3459.1,1.249]
[1735826572983,0.28941,3458.9,3458.8,4.4568]
[1735826573488,0.28941,3458.9,3458.8,3.2078]
[1735826574595,0.28941,3458.9,3458.8,4.4568]
[1735826574779,0.4594,3459.4,3458.8,4.4568]
[1735826575399,0.28941,3458.9,3458.8,4.4568]
[1735826576590,0.28941,3458.9,3458.8,3.2078]
[1735826577495,0.2894,3459.0,3458.9,0.28941]
[1735826577696,0.4594,3459.4,3458.8,3.2078]
[1735826577994,0.28939,3459.1,3458.8,5.66555178]
[1735826578187,0.28939,3459.1,3458.9,1.249]
[1735826578389,0.28939,3459.1,3458.9,1.6726]
[1735826578683,0.4594,3459.4,3458.9,1.6726]
[1735826578889,0.4594,3459.4,3458.9,0.4236]
[1735826579194,0.28938,3459.2,3459.1,0.28938]
[1735826579383,0.4594,3459.4,3458.9,1.6726]
[1735826580295,0.2894,3459.0,3458.9,1.249]
[1735826580590,0.72344,3459.3,3458.8,3.2078]
[1735826580797,0.28941,3458.9,3458.8,3.2078]
[1735826581190,3.2078,3459.1,3458.4,2.45775178]
[1735826581389,0.4594,3459.4,3458.2,0.28946]
[1735826581390,0.28945,3458.4,3458.2,0.28946]
[1735826581600,0.28947,3458.2,3458.1,4.74627]
[1735826581898,0.28947,3458.2,3458.1,4.4568]
[1735826582191,0.28947,3458.2,3458.1,3.2078]
[1735826583293,3.9314,3458.6,3458.1,3.2078]
[1735826583491,0.28946,3458.3,3458.2,2.05722492]
[1735826583696,3.2078,3458.6,3458.3,0.28946]
[1735826583892,3.2078,3458.6,3458.2,2.05722492]
[1735826584089,0.455,3458.8,3458.2,2.05722492]
[1735826584090,0.28941,3458.9,3458.5,2.05722492]
[1735826584297,3.2078,3459.1,3458.5,2.45861995]
[1735826584489,1.01294,3458.9,3458.4,0.28944]
[1735826584694,0.28944,3458.6,3458.5,0.28944]
[1735826584896,3.2078,3459.1,3458.4,3.2078]
[1735826585197,0.28941,3458.9,3458.4,1.249]
[1735826585501,3.2078,3458.9,3458.4,1.249]
[1735826585691,3.2078,3458.8,3458.4,1.249]
[1735826585890,0.28944,3458.5,3458.3,0.28945]
[1735826586191,0.28945,3458.4,3458.2,0.28946]
[1735826586391,3.2078,3458.8,3458.1,2.45861995]
[1735826586595,3.2078,3458.8,3458.7,0.28942]
[1735826586795,3.2078,3459.2,3458.4,0.72362]
[1735826586988,3.2078,3459.2,3458.5,0.28944]
[1735826587301,3.2078,3459.2,3459.1,0.28939]
[1735826587597,0.28938,3459.3,3459.2,0.28938]
[1735826588297,0.2894,3459.1,3459.0,0.2894]
[1735826588799,0.28941,3459.0,3458.9,0.2894]
[1735826588996,0.2894,3459.1,3459.0,0.2894]
[1735826589299,3.2078,3459.1,3457.8,0.91905427]
[1735826589497,3.2078,3458.6,3457.8,4.12685427]
[1735826589695,3.2078,3458.6,3458.1,2.45861995]
[1735826589992,3.2078,3459.1,3459.0,0.2894]
[1735826590197,0.426,3459.4,3459.3,0.28937]
[1735826590591,4.48403903,3459.5,3459.4,0.28937]
[1735826590791,10.08908783,3460.7,3459.7,0.28934]
[1735826590792,4.48403903,3459.8,3459.7,0.28934]
[1735826591100,4.0805056,3459.8,3459.7,7.20475995]
[1735826591797,5.60504879,3460.0,3459.9,0.28932]
[1735826591989,0.4347,3461.1,3460.9,0.28924]
[1735826592396,0.28925,3460.8,3460.6,1.249]
[1735826592694,0.28924,3460.9,3460.6,1.249]
[1735826592893,0.28926,3460.7,3460.6,1.249]
[1735826593501,0.4347,3461.1,3460.6,1.249]
[1735826593694,0.28926,3460.8,3460.6,1.249]
[1735826593890,0.4347,3461.1,3460.6,1.249]
[1735826594191,0.4347,3461.1,3460.5,0.28927]
[1735826594192,0.28925,3460.8,3460.5,0.28927]
[1735826594389,0.4347,3461.1,3460.5,0.28927]
[1735826594592,0.28925,3460.8,3460.4,3.2078]
[1735826594794,0.28924,3460.9,3460.7,0.28925]
[1735826595090,0.4347,3461.1,3460.9,0.28924]
[1735826595490,0.4347,3461.1,3460.4,3.2078]
[1735826595697,0.28925,3460.9,3460.8,0.28925]
[1735826596194,0.28925,3460.9,3460.5,0.28927]
[1735826596396,3.49704,3461.0,3460.8,0.28925]
[1735826596792,0.28924,3460.9,3460.8,0.28925]
[1735826597497,0.28925,3460.8,3460.6,0.28926]
[1735826597700,0.28925,3460.8,3460.4,3.2078]
[1735826597701,0.28925,3460.9,3460.8,0.28925]
[1735826598398,3.2078,3461.0,3460.4,3.2078]
[1735826598901,3.2078,3461.0,3460.9,0.28924]
[1735826599296,3.2078,3461.0,3460.4,3.2078]
[1735826599507,0.28927,3460.5,3460.4,3.49708]
[1735826599802,0.28927,3460.6,3460.5,0.28927]
[1735826600005,3.2078,3461.0,3460.4,3.2078]
[1735826600197,3.2078,3461.0,3460.2,1.265]
[1735826600198,3.2078,3460.6,3459.8,3.2078]
[1735826600510,0.28937,3459.4,3459.0,7.72548839]
[1735826600698,0.28936,3459.5,3459.4,0.28936]
[1735826601003,0.28937,3459.4,3459.3,0.28937]
[1735826601198,0.4526,3460.0,3459.0,3.2078]
[1735826601396,0.72336,3459.7,3459.0,3.2078]
[1735826601601,3.2078,3459.4,3458.8,6.07209839]
[1735826601792,0.28941,3458.9,3458.8,4.51768839]
[1735826602394,0.4526,3459.2,3458.6,3.2078]
[1735826602395,0.28942,3458.7,3458.6,3.2078]
[1735826602604,0.28942,3458.7,3458.3,1.55445]
[1735826602605,0.28945,3458.4,3458.3,1.265]
[1735826602901,3.2078,3458.7,3457.8,4.58725427]
[1735826602902,0.72359,3458.6,3458.0,0.28948]
[1735826603103,3.2078,3458.2,3457.8,0.91905427]
[1735826603305,5.66641995,3458.2,3457.7,1.41048839]
[1735826603499,5.66641995,3457.8,3457.6,6.7844245]
[1735826603818,0.28951,3457.7,3457.6,4.25598252]
[1735826604104,5.66641995,3457.8,3456.7,0.28959]
[1735826604105,0.28957,3457.0,3456.7,0.28959]
[1735826604302,1.265,3458.0,3456.3,4.526396]
[1735826604303,0.28961,3456.5,3456.3,4.526396]